bitfinex/quotes_SOLUSD_20250602
["timestamp","ask_amount","ask_price","bid_price","bid_amount"]
[1748862380360,10.34,153.86,153.83,18.54219546]
[1748862380558,10.34,153.86,153.85,18.54219546]
[1748862380862,50.16,153.86,153.85,107.34219546]
[1748862381763,50.16,153.86,153.85,88.8]
[1748862382268,50.16,153.86,153.85,95.2998375]
[1748862384856,68.70219546,153.86,153.85,95.2998375]
[1748862386282,50.16,153.86,153.85,95.2998375]
[1748862389453,10.34,153.86,153.85,95.2998375]
[1748862389675,50.14,153.86,153.85,95.2998375]
[1748862390180,68.68219546,153.86,153.85,95.2998375]
[1748862390355,87.33184432,153.86,153.85,88.8]
[1748862390859,18.64964886,153.85,153.82,88.8]
[1748862391160,87.33184432,153.86,153.82,88.8]
[1748862391161,37.19184432,153.83,153.82,88.8]
[1748862391678,37.19184432,153.83,153.8,88.8]
[1748862391981,18.54219546,153.81,153.8,88.8]
[1748862392169,28.86219546,153.81,153.8,88.8]
[1748862392359,47.51184432,153.81,153.8,88.8]
[1748862392561,18.64964886,153.8,153.76,95.30357361]
[1748862392765,18.54219546,153.77,153.76,95.30357361]
[1748862393001,39.82,153.77,153.76,113.84576907]
[1748862393562,39.82,153.77,153.76,95.30357361]
[1748862397590,58.36219546,153.77,153.76,95.30364203]
[1748862397892,39.82,153.77,153.76,95.30364203]
[1748862398480,39.82,153.77,153.76,88.8]
[1748862398988,58.36219546,153.77,153.76,88.8]
[1748862399491,77.01184432,153.77,153.75,6.50388559]
[1748862399661,77.01184432,153.77,153.73,88.8]
[1748862399662,28.86219546,153.76,153.74,6.50446308]
[1748862399861,58.36219546,153.75,153.73,95.30491059]
[1748862401692,58.36219546,153.75,153.73,6.50491059]
[1748862402583,58.36219546,153.75,153.71,107.34219546]
[1748862402584,39.82,153.75,153.72,6.50533437]
[1748862402781,39.82,153.75,153.72,113.84752983]
[1748862404083,39.82,153.75,153.73,18.54219546]
[1748862404594,39.82,153.74,153.73,18.54219546]
[1748862404764,39.82,153.74,153.73,25.04710666]
[1748862406795,10.32,153.78,153.75,6.50406504]
[1748862406986,39.82,153.77,153.76,18.54219546]
[1748862407186,39.82,153.77,153.76,107.34219546]
[1748862408484,39.84,153.77,153.76,107.34219546]
[1748862408985,39.84,153.77,153.76,113.84583749]
[1748862409707,39.84,153.77,153.76,95.30364203]
[1748862410003,39.84,153.77,153.76,113.84583749]
[1748862412011,39.82,153.77,153.76,95.30364203]
[1748862415607,39.82,153.77,153.76,113.84583749]
[1748862417389,10.32,153.78,153.76,113.84583749]
[1748862417709,50.14,153.78,153.77,18.54219546]
[1748862418124,50.14,153.78,153.76,113.84583749]
[1748862420186,50.14,153.78,153.76,95.30364203]
[1748862420533,50.14,153.78,153.76,113.84583749]
[1748862420934,68.68219546,153.78,153.76,95.30364203]
[1748862421227,38.83294432,153.77,153.76,88.8]
[1748862421594,38.83294432,153.77,153.73,6.50455355]
[1748862421797,39.84,153.76,153.73,6.50455355]
[1748862422117,58.38219546,153.76,153.73,6.50455355]
[1748862422690,39.84,153.76,153.73,25.04674901]
[1748862422892,39.86,153.75,153.74,18.54219546]
[1748862423119,10.32,153.76,153.74,107.34219546]
[1748862423321,50.2,153.76,153.75,18.54219546]
[1748862423618,10.32,153.76,153.75,18.54219546]
[1748862424026,10.32,153.76,153.75,25.0462605]
[1748862424321,10.32,153.76,153.75,113.8462605]
[1748862425721,10.32,153.76,153.75,95.30406504]
[1748862425896,10.32,153.76,153.75,113.8462605]
[1748862427214,10.32,153.76,153.75,95.30406504]
[1748862427611,28.86219546,153.76,153.75,88.8]
[1748862428221,47.51184432,153.76,153.75,88.8]
[1748862433426,18.64964886,153.74,153.73,88.8]
[1748862433631,77.05184432,153.74,153.71,88.8]
[1748862433838,18.54219546,153.73,153.71,88.8]
[1748862434040,39.86,153.72,153.71,88.8]
[1748862434246,77.05184432,153.72,153.71,88.8]
[1748862434905,39.86,153.72,153.71,95.30575759]
[1748862435130,1.6127,153.75,153.71,113.84795305]
[1748862435319,39.86,153.74,153.71,113.84795305]
[1748862435513,39.86,153.74,153.73,6.5049112]
[1748862436117,47.51184432,153.76,153.73,6.5049112]
[1748862436325,39.9,153.75,153.73,6.5049112]
[1748862437322,47.51184432,153.76,153.73,6.5049112]
[1748862437520,39.9,153.75,153.73,6.5049112]
[1748862438334,39.9,153.75,153.73,95.3049112]
[1748862440743,10.32,153.76,153.74,18.54219546]
[1748862440908,10.32,153.76,153.75,18.54219546]
[1748862441257,50.2,153.76,153.75,18.54219546]
[1748862442336,50.2,153.76,153.75,25.0462605]
[1748862442720,50.2,153.76,153.75,95.30406504]
[1748862443740,50.2,153.76,153.75,113.8462605]
[1748862444520,10.32,153.76,153.75,113.8462605]
[1748862444837,50.2,153.76,153.75,113.8462605]
[1748862453343,18.64964886,153.8,153.77,88.8]
[1748862453344,10.34,153.8,153.77,88.8]
[1748862453567,50.16,153.8,153.79,18.54219546]
[1748862453869,50.16,153.8,153.79,107.34219546]
[1748862454657,50.16,153.8,153.79,113.84456882]
[1748862455861,10.34,153.8,153.79,113.84456882]
[1748862456160,50.14,153.8,153.79,113.84456882]
[1748862457238,50.14,153.8,153.79,95.30237336]
[1748862457438,50.14,153.8,153.79,88.8]
[1748862457648,87.33184432,153.8,153.79,88.8]
[1748862458356,68.78964886,153.8,153.79,88.8]
[1748862459059,87.33184432,153.8,153.79,88.8]
[1748862462139,18.64964886,153.79,153.78,88.8]
[1748862462534,37.19184432,153.79,153.78,88.8]
[1748862464044,18.64964886,153.79,153.78,88.8]
[1748862466447,37.19184432,153.79,153.78,88.8]
[1748862471567,18.64964886,153.79,153.78,95.3027962]
[1748862472002,39.76,153.79,153.78,113.84499166]
[1748862472144,10.34,153.8,153.78,113.84499166]
[1748862472469,39.76,153.79,153.78,95.3027962]
[1748862473261,10.34,153.8,153.78,95.3027962]
[1748862473456,39.78,153.79,153.78,113.84499166]
[1748862476163,10.34,153.8,153.79,74.06456882]
[1748862476881,10.34,153.8,153.79,49.02]
[1748862477080,18.64964886,153.79,153.76,49.02]
[1748862477381,37.19184432,153.77,153.76,49.02]
[1748862477683,76.97184432,153.77,153.76,49.02]
[1748862478365,78.49414432,153.77,153.76,49.02]
[1748862479189,78.49414432,153.77,153.73,49.02]
[1748862479367,18.54219546,153.74,153.73,49.02]
[1748862479551,87.25184432,153.74,153.73,49.02]
[1748862480955,87.25184432,153.74,153.68,55.52700112]
[1748862480956,18.64964886,153.73,153.68,55.52700112]
[1748862481175,1.6497,153.68,153.62,49.02]
[1748862481362,1.6497,153.68,153.59,145.5]
[1748862481363,28.92964886,153.71,153.67,18.54219546]
[1748862481677,28.92964886,153.71,153.64,6.0443]
[1748862481678,10.28,153.71,153.69,18.54219546]
[1748862481853,4.66590812,153.8,153.7,18.54219546]
[1748862481854,68.78964886,153.75,153.7,18.54219546]
[1748862482053,18.64964886,153.74,153.73,25.04710666]
[1748862482263,10.28,153.75,153.73,25.04710666]
[1748862483156,10.28,153.75,153.73,6.5049112]
[1748862483891,10.28,153.75,153.74,18.54219546]
[1748862485378,10.28,153.75,153.73,18.54219546]
[1748862485585,10.28,153.75,153.72,18.54219546]
[1748862485783,10.28,153.75,153.73,18.54219546]
[1748862486368,10.28,153.75,153.74,18.54219546]
[1748862486774,10.28,153.75,153.73,74.06681602]
[1748862487381,10.28,153.75,153.73,67.56219546]
[1748862487594,10.28,153.75,153.73,74.06701565]
[1748862488000,18.64964886,153.74,153.73,49.02]
[1748862490393,77.05184432,153.74,153.69,6.5066042]
[1748862490594,18.54219546,153.72,153.69,55.5266042]
[1748862491595,58.50964886,153.74,153.69,74.06879966]
[1748862491796,39.86,153.74,153.7,18.54219546]
[1748862492004,10.28,153.75,153.72,18.54219546]
[1748862492304,10.3,153.79,153.74,25.04668355]
[1748862492600,68.80219546,153.79,153.74,25.04668355]
[1748862492811,20.15519546,153.78,153.74,25.04668355]
[1748862492984,1.613,153.78,153.74,25.04668355]
[1748862493176,1.613,153.78,153.75,18.54219546]
[1748862493373,1.613,153.78,153.74,25.04668355]
[1748862493579,1.613,153.78,153.75,18.54219546]
[1748862493778,1.613,153.78,153.75,67.56219546]
[1748862494808,1.613,153.78,153.75,55.52364813]
[1748862497410,1.613,153.78,153.75,6.50364813]
[1748862499005,20.15519546,153.78,153.75,6.50364813]
[1748862499786,20.15519546,153.78,153.72,22.76851271]
[1748862499988,37.19184432,153.77,153.72,95.30533437]
[1748862500188,37.19184432,153.77,153.73,18.54219546]
[1748862500910,18.64964886,153.77,153.73,18.54219546]
[1748862501506,37.19184432,153.77,153.73,18.54219546]
[1748862501811,37.19184432,153.77,153.73,25.04681939]
[1748862502109,37.19184432,153.77,153.73,6.50462393]
[1748862502295,37.19184432,153.77,153.73,25.04681939]
[1748862503015,18.64964886,153.77,153.73,25.04681939]
[1748862503317,37.19184432,153.77,153.73,113.84681939]
[1748862503986,18.64964886,153.77,153.73,113.84681939]
[1748862504304,18.64964886,153.77,153.73,95.30462393]
[1748862504513,37.19184432,153.77,153.73,95.30462393]
[1748862504717,20.15519546,153.78,153.74,18.54219546]
[1748862505300,20.15519546,153.78,153.73,113.84681939]
[1748862505493,47.49184432,153.78,153.73,113.84681939]
[1748862505701,18.54219546,153.77,153.73,113.84681939]
[1748862507911,28.84219546,153.78,153.73,130.1090974]
[1748862508091,28.84219546,153.78,153.75,18.54219546]
[1748862508092,10.3,153.78,153.75,18.54219546]
[1748862508597,10.3,153.78,153.76,18.54219546]
[1748862508804,9.91287694,153.81,153.76,18.54219546]
[1748862508805,9.91287694,153.81,153.77,18.54219546]
[1748862509004,9.91287694,153.81,153.76,39.86]
[1748862509005,9.91287694,153.81,153.79,18.54219546]
[1748862509207,9.91287694,153.81,153.78,18.54219546]
[1748862509610,9.91287694,153.81,153.79,6.50237336]
[1748862512235,9.91287694,153.81,153.8,18.54219546]
[1748862513841,10.34,153.82,153.8,18.54219546]
[1748862513997,10.34,153.82,153.81,18.54219546]
[1748862514298,122.48219546,153.86,153.82,6.50110518]
[1748862514505,122.48219546,153.86,153.82,25.04330064]
[1748862515307,103.94,153.86,153.82,25.04330064]
[1748862515519,103.94,153.86,153.83,18.54219546]
[1748862518795,122.48219546,153.86,153.83,6.50068257]
[1748862521628,122.48219546,153.86,153.83,25.04287803]
[1748862521629,103.94,153.86,153.83,25.04287803]
[1748862521921,10.34,153.86,153.85,18.54219546]
[1748862522232,10.34,153.86,153.85,107.34219546]
[1748862523516,10.34,153.86,153.85,113.84203296]
[1748862524933,20.50813882,153.9,153.85,130.09162672]
[1748862525113,20.50813882,153.9,153.89,18.54219546]
[1748862525307,20.50813882,153.9,153.88,18.54219546]
[1748862525507,20.50813882,153.9,153.89,6.49814802]
[1748862525733,20.50813882,153.9,153.89,95.29814802]
[1748862526032,20.50813882,153.9,153.89,88.8]
[1748862527627,20.50813882,153.9,153.89,95.29814802]
[1748862528130,20.50813882,153.9,153.89,113.84034348]
[1748862529360,10.34,153.9,153.89,113.84034348]
[1748862529841,10.34,153.94,153.89,130.08571354]
[1748862530142,10.34,153.94,153.91,18.54219546]
[1748862530641,10.34,153.94,153.92,18.54219546]
[1748862531055,10.34,153.94,153.93,18.54219546]
[1748862531216,10.34,153.94,153.93,107.34219546]
[1748862531417,10.34,153.94,153.93,88.8]
[1748862531835,10.34,153.94,153.93,95.29645942]
[1748862532448,10.34,153.94,153.93,113.83865488]
[1748862532619,93.62,153.96,153.93,113.83865488]
[1748862533054,47.53184432,153.98,153.93,153.75865488]
[1748862533241,47.53184432,153.98,153.94,18.54219546]
[1748862533542,18.54219546,153.97,153.93,135.21645942]
[1748862533863,28.98964886,153.98,153.95,6.49561545]
[1748862534027,10.34,153.98,153.95,6.49561545]
[1748862534218,10.34,153.98,153.95,25.03781091]
[1748862534924,10.34,153.98,153.97,18.54219546]
[1748862535249,18.54219546,154.01,153.97,107.34219546]
[1748862535824,10.34,154.02,153.97,107.34219546]
[1748862536025,28.88219546,154.02,153.98,6.49434991]
[1748862536326,10.34,154.02,153.99,18.54219546]
[1748862537546,28.88219546,154.02,153.98,25.03654537]
[1748862538171,10.34,154.02,153.98,25.03654537]
[1748862538533,28.88219546,154.02,153.98,25.03654537]
[1748862538830,28.88219546,154.02,153.98,113.83654537]
[1748862539355,28.88219546,154.02,153.98,95.29434991]
[1748862539740,18.54219546,154.01,153.98,88.8]
[1748862539938,18.54219546,153.99,153.98,88.8]
[1748862540754,18.54219546,153.99,153.98,66.24305606]
[1748862544759,18.64964886,153.98,153.95,6.4955486]
[1748862544951,18.54219546,153.97,153.95,72.73860466]
[1748862545638,18.54219546,153.97,153.95,66.24305606]
[1748862546758,18.54219546,153.96,153.95,66.24305606]
[1748862547743,37.19184432,153.96,153.95,66.24305606]
[1748862547952,18.64964886,153.96,153.95,66.24305606]
[1748862548153,18.54219546,153.96,153.95,66.24305606]
[1748862548356,28.92219546,153.97,153.95,72.73863151]
[1748862548561,28.92219546,153.97,153.95,66.24305606]
[1748862550149,28.92219546,153.97,153.95,72.73859277]
[1748862551164,10.38,153.97,153.95,91.28078823]
[1748862551339,10.38,153.97,153.95,72.73859277]
[1748862552061,18.54219546,153.99,153.95,91.28078823]
[1748862552846,18.54219546,153.98,153.95,72.73859277]
[1748862553761,18.54219546,153.97,153.95,66.24305606]
[1748862554661,18.54219546,153.96,153.95,66.24305606]
[1748862554865,18.54219546,153.97,153.95,72.73867151]
[1748862555244,18.54219546,153.97,153.95,66.24305606]
[1748862555442,18.54219546,153.96,153.95,66.24305606]
[1748862555945,18.54219546,153.96,153.95,72.73867151]
[1748862556648,18.54219546,153.97,153.95,72.73867151]
[1748862557265,18.54219546,153.99,153.95,91.28086697]
[1748862558259,18.54219546,153.98,153.95,72.73867151]
[1748862559270,18.64964886,153.98,153.95,66.24305606]
[1748862559449,18.54219546,153.96,153.95,66.24305606]
[1748862559651,18.54219546,153.97,153.95,72.73867151]
[1748862560362,18.54219546,153.98,153.95,72.73867151]
[1748862561069,18.54219546,153.97,153.95,72.73867151]
[1748862563975,18.54219546,153.96,153.95,66.24305606]
[1748862565242,37.19184432,153.96,153.95,66.24305606]
[1748862565449,18.64964886,153.95,153.88,6.49857031]
[1748862565643,18.54219546,153.9,153.88,66.24305606]
[1748862565879,18.54219546,153.89,153.88,66.24305606]
[1748862566061,18.54219546,153.89,153.87,66.24305606]
[1748862566256,18.54219546,153.88,153.86,66.24305606]
[1748862566463,18.54219546,153.87,153.86,66.24305606]
[1748862566773,18.54219546,153.87,153.83,72.743615]
[1748862566971,18.54219546,153.85,153.83,6.50055894]
[1748862567268,18.54219546,153.85,153.82,72.7440106]
[1748862567464,18.64964886,153.87,153.82,72.7440106]
[1748862567465,18.54219546,153.84,153.82,72.7440106]
[1748862567974,18.54219546,153.85,153.82,72.7440106]
[1748862568452,18.54219546,153.85,153.82,6.50095454]
[1748862569988,18.54219546,153.87,153.83,18.54219546]
[1748862570172,10.38,153.89,153.86,18.54219546]
[1748862570482,10.38,153.89,153.86,84.78525152]
[1748862571062,10.38,153.89,153.88,6.49857031]
[1748862576463,10.38,153.89,153.88,66.24305606]
[1748862578064,10.38,153.89,153.88,72.74162637]
[1748862578554,10.38,153.89,153.88,91.28382183]
[1748862579587,10.38,153.89,153.88,72.74162637]
[1748862591977,1.6393,153.96,153.89,55.86305606]
[1748862592296,1.6393,153.96,153.92,18.54219546]
[1748862592297,10.4,153.93,153.92,18.54219546]
[1748862593778,10.4,153.93,153.92,25.03907695]
[1748862595498,10.4,153.97,153.92,41.28128069]
[1748862595696,10.4,153.97,153.96,18.54219546]
[1748862595996,10.4,153.97,153.96,74.40525152]
[1748862596193,10.4,153.97,153.96,55.86305606]
[1748862597577,10.4,153.97,153.96,62.35824961]
[1748862598591,28.94219546,153.97,153.96,55.86305606]
[1748862601099,28.94219546,153.97,153.94,6.49590681]
[1748862601294,18.54219546,153.96,153.93,62.35939969]
[1748862602199,10.4,153.97,153.94,18.54219546]
[1748862603204,42.62366402,154.02,153.96,18.54219546]
[1748862603205,10.17266402,154.02,153.96,18.54219546]
[1748862603416,10.34,154.01,153.98,18.54219546]
[1748862603623,28.88219546,154.01,153.97,18.54219546]
[1748862604139,10.34,154.01,153.97,18.54219546]
[1748862604322,10.34,154.01,153.98,6.49434991]
[1748862604631,10.34,154.01,153.98,25.03654537]
[1748862604992,10.34,154.01,154.0,18.54219546]
[1748862605531,10.34,154.01,153.99,18.54219546]
[1748862606313,10.34,154.01,153.98,22.73022469]
[1748862606314,10.34,154.01,154.0,18.54219546]
[1748862607814,10.34,154.05,154.0,74.40525152]
[1748862608119,10.34,154.05,154.01,18.54219546]
[1748862608304,10.34,154.05,154.04,6.4918203]
[1748862608506,10.34,154.05,154.04,62.35487636]
[1748862608904,10.34,154.05,154.04,55.86305606]
[1748862609108,28.88219546,154.05,154.04,55.86305606]
[1748862612724,28.88219546,154.05,154.02,55.86305606]
[1748862613027,18.54219546,154.04,154.02,55.86305606]
[1748862614823,28.88219546,154.05,154.02,62.35568199]
[1748862615405,18.54219546,154.04,154.02,55.86305606]
[1748862615721,10.34,154.05,154.02,62.35563617]
[1748862615916,28.88219546,154.05,154.02,62.35563617]
[1748862618420,10.34,154.05,154.02,80.89783163]
[1748862618622,93.54,154.06,154.03,18.54219546]
[1748862618811,93.54,154.06,154.04,18.54219546]
[1748862619012,93.54,154.06,154.05,6.49139889]
[1748862619252,10.32,154.07,154.05,6.49139889]
[1748862619413,10.32,154.07,154.05,25.03359435]
[1748862619608,10.32,154.07,154.05,80.89665041]
[1748862620029,10.32,154.07,154.05,62.35445495]
[1748862621022,10.32,154.07,154.05,80.89665041]
[1748862621251,10.32,154.07,154.05,62.35445495]
[1748862624437,10.32,154.07,154.05,80.89665041]
[1748862624744,10.32,154.11,154.06,58.24219546]
[1748862624939,28.86219546,154.11,154.07,18.54219546]
[1748862625545,28.86219546,154.11,154.06,39.7]
[1748862625546,10.32,154.11,154.08,18.54219546]
[1748862626818,10.32,154.11,154.09,6.4897138]
[1748862627132,10.32,154.11,154.09,62.35276986]
[1748862630741,28.86219546,154.11,154.09,62.35276986]
[1748862630955,18.64964886,154.09,154.07,55.86305606]
[1748862631132,37.19184432,154.08,154.07,55.86305606]
[1748862631745,39.76,154.09,154.07,55.86305606]
[1748862632050,18.54219546,154.08,154.07,55.86305606]
[1748862632251,44.64964886,154.07,154.01,55.86305606]
[1748862632441,18.54219546,154.02,154.01,55.86305606]
[1748862632758,39.8,154.05,154.01,62.35614092]
[1748862632933,18.54219546,154.03,154.01,62.35614092]
[1748862633134,10.26,154.06,154.01,80.89833638]
[1748862633344,10.26,154.06,154.02,18.54219546]
[1748862633531,10.26,154.06,154.05,18.54219546]
[1748862633847,18.54219546,154.09,154.05,18.54219546]
[1748862634055,10.26,154.1,154.07,18.54219546]
[1748862634418,10.26,154.1,154.08,6.49013499]
[1748862635251,10.26,154.1,154.08,25.03233045]
[1748862635457,10.26,154.1,154.09,18.54219546]
[1748862635626,18.54219546,154.13,154.09,18.54219546]
[1748862636422,18.54219546,154.12,154.08,25.03233045]
[1748862637852,11.858,154.14,154.09,18.54219546]
[1748862638049,18.54219546,154.13,154.09,18.54219546]
[1748862638231,10.26,154.14,154.1,18.54219546]
[1748862638436,10.26,154.14,154.08,6.49013499]
[1748862638437,10.26,154.14,154.11,18.54219546]
[1748862638629,28.80219546,154.14,154.12,6.48845055]
[1748862639227,10.26,154.14,154.12,6.48845055]
[1748862639446,28.80219546,154.14,154.12,6.48845055]
[1748862639752,28.80219546,154.14,154.12,62.35150661]
[1748862640442,18.54219546,154.13,154.12,55.86305606]
[1748862641150,37.19184432,154.13,154.12,55.86305606]
[1748862643235,72.44756303,154.13,154.07,55.86305606]
[1748862643455,27.79791417,154.08,154.07,55.86305606]
[1748862643658,27.79791417,154.09,154.07,55.86305606]
[1748862647347,27.79791417,154.09,154.07,62.35357796]
[1748862647656,27.79791417,154.11,154.07,62.35357796]
[1748862648244,27.79791417,154.11,154.07,90.15149213]
[1748862649057,27.79791417,154.1,154.07,62.35357796]
[1748862651948,38.05791417,154.11,154.07,62.35357796]
[1748862652460,27.79791417,154.1,154.07,62.35357796]
[1748862653754,11.71229766,154.14,154.07,62.35357796]
[1748862653976,39.51021183,154.14,154.1,27.79791417]
[1748862654136,11.71229766,154.14,154.11,27.79791417]
[1748862654463,11.71229766,154.14,154.11,55.86305606]
[1748862656071,11.71229766,154.14,154.12,6.48845055]
[1748862656475,39.51021183,154.14,154.12,6.48845055]
[1748862657245,39.51021183,154.14,154.11,62.35180479]
[1748862657545,27.79791417,154.13,154.11,62.35180479]
[1748862657960,39.51021183,154.14,154.11,62.35180479]
[1748862658867,11.71229766,154.14,154.11,106.37189792]
[1748862659172,11.71229766,154.14,154.13,27.79791417]
[1748862659372,10.26,154.17,154.13,27.79791417]
[1748862659573,10.26,154.17,154.15,27.79791417]
[1748862659777,10.26,154.17,154.15,55.86305606]
[1748862659954,10.26,154.17,154.16,6.48676699]
[1748862660354,10.26,154.17,154.15,62.35008182]
[1748862660574,10.26,154.17,154.15,90.14799599]
[1748862661468,10.34,154.21,154.16,27.79791417]
[1748862661672,10.34,154.21,154.17,27.79791417]
[1748862661967,38.13791417,154.21,154.17,27.79791417]
[1748862662156,27.79791417,154.2,154.16,83.66097023]
[1748862662546,27.79791417,154.19,154.17,6.48621734]
[1748862662750,10.34,154.21,154.18,27.79791417]
[1748862662968,27.79791417,154.2,154.17,62.3492734]
[1748862663175,18.50830231,154.2,154.17,62.3492734]
[1748862663362,18.50830231,154.18,154.17,55.86305606]
[1748862664768,37.15795117,154.18,154.17,55.86305606]
[1748862664969,37.15795117,154.18,154.13,62.35091998]
[1748862665267,18.50830231,154.16,154.13,62.35091998]
[1748862665765,28.84830231,154.16,154.13,62.35091998]
[1748862667200,10.34,154.16,154.13,62.35091998]
[1748862667376,10.34,154.16,154.13,97.07929625]
[1748862668076,10.34,154.16,154.14,18.50830231]
[1748862668279,10.34,154.2,154.15,18.50830231]
[1748862668481,10.34,154.2,154.17,18.50830231]
[1748862668655,10.34,154.2,154.18,6.48592554]
[1748862668858,10.34,154.2,154.18,24.99422785]
[1748862669054,10.34,154.2,154.18,6.48592554]
[1748862671993,10.34,154.2,154.18,62.3489816]
[1748862673772,10.34,154.2,154.18,80.85728391]
[1748862673991,10.34,154.2,154.18,62.3489816]
[1748862674587,93.44,154.22,154.19,18.50830231]
[1748862674881,93.44,154.22,154.19,74.37135837]
[1748862675689,18.50830231,154.23,154.2,6.4850843]
[1748862676069,30.35940231,154.24,154.2,6.4850843]
[1748862676272,11.8511,154.24,154.2,6.4850843]
[1748862676465,30.35940231,154.24,154.2,6.4850843]
[1748862677092,2.94788419,154.29,154.24,26.0]
[1748862677308,2.94788419,154.29,154.28,18.50830231]
[1748862677808,2.94788419,154.29,154.28,153.75002385]
[1748862678176,2.94788419,154.29,154.28,135.24172154]
[1748862678393,2.94788419,154.29,154.28,153.75002385]
[1748862679185,2.94788419,154.29,154.28,162.94787519]
[1748862680101,2.94788419,154.29,154.28,122.98787519]
[1748862682008,2.94788419,154.29,154.28,95.28172154]
[1748862682982,10.34,154.37,154.31,26.0]
[1748862683209,10.34,154.37,154.32,40.06]
[1748862683411,10.34,154.37,154.35,27.70615365]
[1748862683611,10.34,154.37,154.36,27.70615365]
[1748862683909,0.8931563,154.41,154.36,27.70615365]
[1748862683910,11.2331563,154.41,154.36,27.70615365]
[1748862684209,38.93930995,154.41,154.37,6.47759081]
[1748862684391,27.70615365,154.4,154.37,6.47759081]
[1748862685410,38.93930995,154.41,154.37,6.47759081]
[1748862685990,11.2331563,154.41,154.37,6.47759081]
[1748862686187,11.2331563,154.41,154.37,27.70615365]
[1748862686495,38.93930995,154.41,154.37,27.70615365]
[1748862687486,11.2331563,154.41,154.38,27.70615365]
[1748862687994,11.2331563,154.41,154.36,6.47836227]
[1748862688308,38.93930995,154.41,154.37,34.18370961]
[1748862689192,11.2331563,154.41,154.38,27.70615365]
[1748862691011,11.2331563,154.41,154.39,27.70615365]
[1748862692103,38.93930995,154.41,154.37,27.70615365]
[1748862692310,27.70615365,154.4,154.36,122.98451592]
[1748862692608,38.93930995,154.41,154.37,27.70615365]
[1748862693117,27.70615365,154.39,154.36,88.8]
[1748862693804,18.64964886,154.36,154.3,27.70615365]
[1748862694110,27.70615365,154.35,154.31,27.70615365]
[1748862694301,29.12964886,154.36,154.34,27.70615365]
[1748862694302,10.48,154.36,154.34,27.70615365]
[1748862694625,10.48,154.36,154.3,26.0]
[1748862694626,10.48,154.36,154.35,27.70615365]
[1748862695317,10.48,154.36,154.33,34.18577524]
[1748862696098,27.70615365,154.35,154.32,135.31991058]
[1748862697093,38.18615365,154.36,154.32,74.22606423]
[1748862697299,38.18615365,154.36,154.32,46.51991058]
[1748862697496,38.18615365,154.36,154.32,74.22606423]
[1748862698118,27.70615365,154.35,154.32,6.47991058]
[1748862699414,10.48,154.36,154.32,6.47991058]
[1748862699629,27.70615365,154.35,154.32,6.47991058]
[1748862699992,27.70615365,154.35,154.31,6.48045505]
[1748862700590,27.70615365,154.35,154.31,116.50615365]
[1748862701422,27.70615365,154.35,154.31,107.27104163]
[1748862701423,18.47104163,154.35,154.31,107.27104163]
[1748862702105,18.47104163,154.35,154.31,113.75127072]
[1748862702693,18.47104163,154.34,154.31,95.28022909]
[1748862703110,18.47104163,154.34,154.31,88.8]
[1748862703818,18.47104163,154.32,154.29,88.8]
[1748862704032,18.47104163,154.31,154.29,88.8]
[1748862704237,18.47104163,154.31,154.28,6.48135319]
[1748862704594,28.95104163,154.31,154.28,6.48135319]
[1748862705511,10.48,154.31,154.28,24.95239482]
[1748862705726,10.48,154.31,154.29,18.47104163]
[1748862705913,10.48,154.31,154.29,107.27104163]
[1748862706229,10.48,154.31,154.29,88.8]
[1748862706409,10.48,154.31,154.3,6.48088139]
[1748862707319,10.48,154.31,154.29,95.2811354]
[1748862709325,10.48,154.31,154.29,113.75217703]
[1748862709712,10.48,154.31,154.29,95.2811354]
[1748862710811,10.48,154.31,154.29,113.75217703]
[1748862711623,10.48,154.31,154.3,18.47104163]
[1748862711810,10.48,154.31,154.3,107.27104163]
[1748862712012,30.49604163,154.35,154.3,107.27104163]
[1748862713097,18.47104163,154.34,154.31,6.4804614]
[1748862713302,18.47104163,154.32,154.31,88.8]
[1748862717119,70.67464886,154.35,154.31,88.8]
[1748862717320,18.47104163,154.32,154.31,88.8]
[1748862717830,18.47104163,154.32,154.31,95.2804614]
[1748862719227,18.47104163,154.32,154.31,88.8]
[1748862719826,28.91104163,154.32,154.31,88.8]
[1748862720434,28.91104163,154.32,154.31,95.2804614]
[1748862721136,10.44,154.32,154.31,95.2804614]